fUST/lending_fUST_20260112
["ID","MTS","AMOUNT","RATE_DAILY","PERIOD"]
[401400956,1768185032219,-1200.0,0.00013995,2]
[401400957,1768185032228,-300.0,0.00013996,2]
[401400958,1768185032238,-300.0,0.00013996,2]
[401400959,1768185032247,-300.0,0.00013996,2]
[401400960,1768185032258,-300.0,0.00013996,2]
[401400961,1768185032267,-300.0,0.00013996,2]
[401400962,1768185032277,-300.0,0.00013996,2]
[401400963,1768185032286,-300.0,0.00013996,2]
[401400964,1768185032296,-300.0,0.00013996,2]
[401400965,1768185032305,-300.0,0.00013996,2]
[401400966,1768185032314,-300.0,0.00013996,2]
[401400967,1768185032324,-300.0,0.00013996,2]
[401400968,1768185032334,-300.0,0.00013996,2]
[401400969,1768185032343,-300.0,0.00013996,2]
[401400970,1768185032352,-300.0,0.00013996,2]
[401400971,1768185032362,-300.0,0.00013996,2]
[401400972,1768185032371,-217.35618066,0.00014221,2]
[401400973,1768185032383,-382.64381934,0.00014221,2]
[401400974,1768185032392,-173.74,0.00014404,2]
[401400975,1768185032401,-900.0,0.00014768,2]
[401400976,1768185032411,-1000.0,0.00015,2]
[401400977,1768185032420,-1000.0,0.00015094,2]
[401400978,1768185032429,-746.96749703,0.00015316,2]
[401400979,1768185032439,-420.0,0.00015332,2]
[401400980,1768185032448,-187.44369107,0.00015479,2]
[401400981,1768185032457,-164.98,0.000158,2]
[401400982,1768185032466,-216.03679649,0.00017479,2]
[401400983,1768185032476,-2136.84953489,0.000176,2]
[401400984,1768185032485,-13143.06131024,0.00018,2]
[401400994,1768185038161,-2009.49080268,0.00018,2]
[401400995,1768185038172,-75067.17408524,0.00018,2]
[401400996,1768185038181,-11544.94343304,0.00018978,2]
[401400997,1768185038190,-11544.94343304,0.00018978,2]
[401400998,1768185038199,-500.0,0.00019178,30]
[401400999,1768185038209,-500.0,0.00019178,30]
[401401000,1768185038218,-500.0,0.00019178,30]
[401401001,1768185038228,-500.0,0.00019178,30]
[401401002,1768185038237,-500.0,0.00019178,30]
[401401003,1768185038246,-500.0,0.00019178,30]
[401401004,1768185038256,-500.0,0.00019178,30]
[401401005,1768185038265,-500.0,0.00019178,30]
[401401006,1768185038274,-500.0,0.00019178,30]
[401401007,1768185038284,-500.0,0.00019178,30]
[401401008,1768185038294,-500.0,0.00019178,30]
[401401009,1768185038303,-500.0,0.00019178,30]
[401401010,1768185038313,-500.0,0.00019178,30]
[401401011,1768185038322,-500.0,0.00019178,30]
[401401012,1768185038331,-500.0,0.00019178,30]
[401401013,1768185038340,-500.0,0.00019178,30]
[401401014,1768185038350,-500.0,0.00019178,30]
[401401015,1768185038359,-500.0,0.00019178,30]
[401401016,1768185038369,-500.0,0.00019178,30]
[401401017,1768185038378,-500.0,0.00019178,30]
[401401018,1768185038388,-486.51392619,0.00019178,30]
[401401019,1768185038397,-164.98,0.000194,2]
[401401020,1768185038407,-244.62990191,0.00019479,2]
[401401021,1768185038416,-600.0,0.00019561,2]
[401401022,1768185038425,-5000.0,0.00019627,2]
[401401023,1768185038435,-30000.0,0.00019629,2]
[401401024,1768185038444,-2487.15318209,0.00019629,2]
[401401025,1768185038453,-151.65828913,0.0002,2]
[401401026,1768185038463,-10011.95890291,0.0002,7]
[401401027,1768185038472,-597.6,0.00020149,2]
[401401028,1768185038481,-25103.86611483,0.00020177,2]
[401401029,1768185038490,-2579.17784983,0.00020177,2]
[401401030,1768185038500,-1041.66666667,0.00020372,2]
[401401031,1768185038509,-2674.60743027,0.00020725,2]
[401401032,1768185038518,-514.84070869,0.00020876,2]
[401401033,1768185038528,-500.0,0.00020876,2]
[401401034,1768185038537,-187.78006525,0.00020876,2]
[401401035,1768185038546,-500.0,0.00020876,2]
[401401036,1768185038555,-194.72792766,0.00020876,2]
[401401037,1768185038564,-500.0,0.00020876,2]
[401401038,1768185038574,-201.93286099,0.00020876,2]
[401401039,1768185038583,-500.0,0.00020876,2]
[401401040,1768185038593,-209.40437684,0.00020876,2]
[401401041,1768185038603,-500.0,0.00020876,2]
[401401042,1768185038612,-217.15233878,0.00020876,2]
[401401043,1768185038621,-500.0,0.00020876,2]
[401401044,1768185038631,-225.18697532,0.00020876,2]
[401401045,1768185038640,-500.0,0.00020876,2]
[401401046,1768185038649,-233.51889341,0.00020876,2]
[401401047,1768185038658,-500.0,0.00020876,2]
[401401048,1768185038667,-242.15909246,0.00020876,2]
[401401049,1768185038676,-500.0,0.00020876,2]
[401401050,1768185038686,-251.11897888,0.00020876,2]
[401401051,1768185038695,-500.0,0.00020876,2]
[401401052,1768185038704,-260.4103811,0.00020876,2]
[401401053,1768185038716,-500.0,0.00020876,2]
[401401054,1768185038726,-270.0455652,0.00020876,2]
[401401055,1768185038736,-500.0,0.00020876,2]
[401401056,1768185038745,-280.03725112,0.00020876,2]
[401401057,1768185038754,-500.0,0.00020876,2]
[401401058,1768185038765,-290.39862941,0.00020876,2]
[401401059,1768185038775,-500.0,0.00020876,2]
[401401060,1768185038784,-301.1433787,0.00020876,2]
[401401061,1768185038794,-500.0,0.00020989,2]
[401401062,1768185038804,-159.09975667,0.00020989,2]
[401401063,1768185038813,-288.7476792,0.00020989,2]
[401401064,1768185038822,-713.05233335,0.00020989,2]
[401401065,1768185038832,-100000.0,0.0002099,2]
[401401066,1768185038841,-151.0,0.0002099,2]
[401401067,1768185038850,-155.21,0.00021,2]
[401401069,1768185038861,-159.13,0.00021,2]
[401401070,1768185038871,-299.999999,0.00021,2]
[401401071,1768185038880,-312.0,0.00021187,2]
[401401072,1768185038889,-2773.56790519,0.00021273,2]
[401401073,1768185038899,-361.0,0.00021283,2]
[401401074,1768185038908,-597.6,0.00021287,2]
[401401075,1768185038917,-178.12,0.00021295,2]
[401401076,1768185038926,-530.357,0.00021295,2]
[401401077,1768185038935,-533.88981491,0.00021424,2]
[401401078,1768185038944,-398.0,0.00021435,2]
[401401079,1768185038954,-273.22300733,0.00021479,2]
[401401080,1768185038963,-151.0,0.000215,3]
[401401081,1768185038972,-459.0,0.00021506,2]
[401401082,1768185038981,-720.0,0.00021517,10]
[401401083,1768185038990,-459.0,0.00021534,2]
[401401084,1768185039000,-459.0,0.0002156,2]
[401401085,1768185039009,-11544.94343303,0.00021565,2]
[401401086,1768185039019,-11544.94343303,0.00021565,2]
[401401087,1768185039029,-459.0,0.00021577,2]
[401401088,1768185039038,-494.0,0.00021643,2]
[401401089,1768185039048,-459.0,0.00021652,2]
[401401090,1768185039057,-459.0,0.00021684,2]
[401401091,1768185039067,-361.0,0.00021684,2]
[401401092,1768185039078,-459.0,0.00021764,2]
[401401093,1768185039089,-459.0,0.00021776,2]
[401401094,1768185039100,-2377.01550568,0.00021788,2]
[401401095,1768185039111,-459.0,0.00021791,2]
[401401096,1768185039124,-151.0,0.000218,4]
[401401097,1768185039133,-2876.18991768,0.00021821,2]
[401401098,1768185039142,-500.0,0.00021869,2]
[401401099,1768185039152,-5000.0,0.0002187,2]
[401401100,1768185039163,-595.28988317,0.00021887,2]
[401401101,1768185039172,-4592.03625506,0.00021888,2]
[401401102,1768185039182,-300.0,0.00021897,2]
[401401103,1768185039191,-459.0,0.00021914,2]
[401401104,1768185039200,-500.0,0.00021917,2]
[401401105,1768185039209,-151.636506,0.00021918,2]
[401401106,1768185039218,-213.287549,0.00021918,2]
[401401107,1768185039228,-151.0,0.00021918,2]
[401401108,1768185039238,-151.0,0.00021918,2]
[401401109,1768185039248,-820.742298,0.00021918,2]
[401401110,1768185039257,-820.742298,0.00021918,2]
[401401111,1768185039266,-820.742298,0.00021918,2]
[401401112,1768185039278,-820.742298,0.00021918,2]
[401401113,1768185039287,-151.0,0.00021918,2]
[401401114,1768185039297,-400.019935,0.00021918,2]
[401401115,1768185039306,-400.019935,0.00021918,2]
[401401116,1768185039315,-400.019935,0.00021918,2]
[401401117,1768185039324,-400.019935,0.00021918,2]
[401401118,1768185039333,-2507.050628,0.00021918,2]
[401401119,1768185039343,-318.433111,0.00021918,2]
[401401120,1768185039352,-1273.732444,0.00021918,2]
[401401121,1768185039362,-2865.89799899,0.00021918,2]
[401401122,1768185039372,-5094.92977598,0.00021918,2]
[401401123,1768185039382,-5313.8890839,0.00021918,2]
[401401124,1768185039391,-7952.86694719,0.00021918,2]
[401401125,1768185039401,-591.02314358,0.00021918,2]
[401401126,1768185039411,-2364.09257431,0.00021918,2]
[401401127,1768185039420,-151.0,0.00021918,2]
[401401128,1768185039429,-275.208518,0.00021918,2]
[401401129,1768185039439,-188.231759,0.00021918,2]
[401401130,1768185039449,-820.742298,0.00021918,2]
[401401131,1768185039459,-820.742298,0.00021918,2]
[401401132,1768185039468,-820.742298,0.00021918,2]
[401401133,1768185039478,-820.742298,0.00021918,2]
[401401134,1768185039488,-400.019935,0.00021918,2]
[401401135,1768185039497,-400.019935,0.00021918,2]
[401401136,1768185039506,-400.019935,0.00021918,2]
[401401137,1768185039516,-400.019935,0.00021918,2]
[401401138,1768185039525,-2507.050628,0.00021918,2]
[401401139,1768185039534,-459.0,0.00021928,2]
[401401140,1768185039543,-459.0,0.00021947,2]
[401401141,1768185039552,-553.64373807,0.00021972,2]
[401401142,1768185039561,-445.14768002,0.00021974,2]
[401401143,1768185039570,-1780.06082,0.0002198,2]
[401401144,1768185039580,-9583.7052843,0.0002198,2]
[401401145,1768185039590,-3037.5076894,0.0002198,2]
[401401146,1768185039599,-153.187876,0.0002198,2]
[401401147,1768185039608,-162.607111,0.0002198,2]
[401401148,1768185039617,-216.477355,0.0002198,2]
[401401149,1768185039626,-216.477355,0.0002198,2]
[401401150,1768185039635,-216.477355,0.0002198,2]
[401401151,1768185039644,-216.477355,0.0002198,2]
[401401152,1768185039652,-151.0,0.0002198,2]
[401401154,1768185039661,-151.0,0.0002198,2]
[401401156,1768185039766,-262.111459,0.0002198,2]
[401401158,1768185039775,-151.0,0.0002198,2]
[401401159,1768185039785,-262.111459,0.0002198,2]
[401401160,1768185039795,-262.111459,0.0002198,2]
[401401161,1768185039804,-262.111459,0.0002198,2]
[401401162,1768185039813,-583.088819,0.0002198,2]
[401401164,1768185039822,-583.088819,0.0002198,2]
[401401165,1768185039832,-583.088819,0.0002198,2]
[401401166,1768185039841,-583.088819,0.0002198,2]
[401401167,1768185039849,-151.0,0.0002198,2]
[401401168,1768185039858,-291.2146172,0.0002198,2]
[401401170,1768185039867,-151.0,0.0002198,2]
[401401171,1768185039876,-151.0,0.0002198,2]
[401401172,1768185039886,-159.365007,0.0002198,2]
[401401173,1768185039894,-151.0,0.0002198,2]
[401401174,1768185039904,-151.0,0.0002198,2]
[401401175,1768185039912,-322.640639,0.0002198,2]
[401401176,1768185039921,-322.640639,0.0002198,2]
[401401177,1768185039930,-322.640639,0.0002198,2]
[401401178,1768185039939,-151.0,0.0002198,2]
[401401179,1768185039948,-322.640639,0.0002198,2]
[401401180,1768185039956,-783.378579,0.0002198,2]
[401401181,1768185039965,-783.378579,0.0002198,2]
[401401182,1768185039974,-783.378579,0.0002198,2]
[401401183,1768185039983,-783.378579,0.0002198,2]
[401401184,1768185039992,-158.028197,0.0002198,2]
[401401185,1768185040001,-500.0,0.00021985,2]
[401401186,1768185040010,-263.02154721,0.00021985,2]
[401401187,1768185040019,-500.0,0.00021985,2]
[401401188,1768185040026,-500.0,0.00021985,2]
[401401189,1768185040035,-500.0,0.00021985,2]
[401401190,1768185040044,-500.0,0.00021985,2]
[401401191,1768185040053,-500.0,0.00021985,2]
[401401192,1768185040062,-500.0,0.00021985,2]
[401401193,1768185040071,-500.0,0.00021985,2]
[401401195,1768185040080,-500.0,0.00021985,2]
[401401197,1768185040089,-500.0,0.00021985,2]
[401401198,1768185040098,-500.0,0.00021985,2]
[401401199,1768185040108,-500.0,0.00021985,2]
[401401200,1768185040117,-500.0,0.00021985,2]
[401401201,1768185040126,-500.0,0.00021985,2]
[401401202,1768185040135,-339.49488441,0.00021985,2]
[401401203,1768185040144,-500.0,0.00021985,2]
[401401204,1768185040154,-500.0,0.00021985,2]
[401401205,1768185040163,-500.0,0.00021985,2]
[401401206,1768185040172,-500.0,0.00021985,2]
[401401207,1768185040181,-500.0,0.00021985,2]
[401401208,1768185040191,-292.13554916,0.00021985,2]
[401401209,1768185040201,-500.0,0.00021985,2]
[401401210,1768185040210,-300.0,0.00021985,2]
[401401211,1768185040219,-23377.53221958,0.00021988,2]
[401401214,1768185040342,-3134.89821419,0.00021988,2]
[401401216,1768185040353,-108199.23925549,0.00021988,2]
[401401218,1768185040364,-2250.01074628,0.00021988,2]
[401401220,1768185040375,-2125.2467115,0.00021988,2]
[401401238,1768185040538,-2507.050628,0.00021918,2]
[401401239,1768185040547,-2507.050628,0.00021918,2]
[401401241,1768185040556,-235521.75665033,0.00021988,2]
[401401243,1768185040565,-151.0,0.00021988,2]
[401401245,1768185040574,-151.0,0.00021988,2]
[401401247,1768185040584,-151.0,0.00021988,2]
[401401249,1768185040593,-396.547509,0.00021988,2]
[401401251,1768185040601,-396.547509,0.00021988,2]
[401401253,1768185040610,-151.0,0.00021988,2]
[401401255,1768185040619,-396.547509,0.00021988,2]
[401401257,1768185040628,-396.547509,0.00021988,2]
[401401259,1768185040638,-151.0,0.00021988,2]
[401401261,1768185040648,-277.4352,0.00021988,2]
[401401263,1768185040657,-277.4352,0.00021988,2]
[401401265,1768185040665,-504.848663,0.00021988,2]
[401401266,1768185040674,-277.4352,0.00021988,2]
[401401268,1768185040683,-504.848663,0.00021988,2]
[401401270,1768185040692,-277.4352,0.00021988,2]
[401401272,1768185040701,-504.848663,0.00021988,2]
[401401274,1768185040710,-504.848663,0.00021988,2]
[401401276,1768185040724,-151.0,0.00021988,2]
[401401278,1768185040733,-165.044852,0.00021988,2]
[401401280,1768185040741,-197.225983,0.00021988,2]
[401401282,1768185040750,-151.072012,0.00021988,2]
[401401284,1768185040759,-200.234462,0.00021988,2]
[401401285,1768185040768,-200.234462,0.00021988,2]
[401401287,1768185040777,-200.234462,0.00021988,2]
[401401289,1768185040787,-200.234462,0.00021988,2]
[401401291,1768185040796,-151.0,0.00021988,2]
[401401293,1768185040805,-180.510278,0.00021988,2]
[401401295,1768185040814,-180.510278,0.00021988,2]
[401401297,1768185040823,-180.510278,0.00021988,2]
[401401299,1768185040832,-180.510278,0.00021988,2]
[401401301,1768185040841,-307.736354,0.00021988,2]
[401401303,1768185040850,-307.736354,0.00021988,2]
[401401305,1768185040858,-307.736354,0.00021988,2]
[401401307,1768185040867,-307.736354,0.00021988,2]
[401401309,1768185040876,-216.477355,0.00021988,2]
[401401310,1768185040885,-216.477355,0.00021988,2]
[401401312,1768185040894,-216.477355,0.00021988,2]
[401401314,1768185040904,-216.477355,0.00021988,2]
[401401316,1768185040914,-160.056861,0.00021988,2]
[401401318,1768185040923,-227.326035,0.00021988,2]
[401401320,1768185040932,-151.0,0.00021988,2]
[401401322,1768185040941,-262.111459,0.00021988,2]
[401401324,1768185040950,-151.0,0.00021988,2]
[401401326,1768185040958,-262.111459,0.00021988,2]
[401401328,1768185040967,-262.111459,0.00021988,2]
[401401330,1768185040976,-262.111459,0.00021988,2]
[401401332,1768185040985,-166.870642,0.00021988,2]
[401401334,1768185040995,-151.0,0.00021988,2]
[401401336,1768185041004,-151.0,0.00021988,2]
[401401338,1768185041013,-151.0,0.00021988,2]
[401401340,1768185041022,-220.667462,0.00021988,2]
[401401342,1768185041030,-151.0,0.00021988,2]
[401401344,1768185041041,-151.0,0.00021988,2]
[401401346,1768185041050,-151.0,0.00021988,2]
[401401348,1768185041059,-151.0,0.00021988,2]
[401401350,1768185041068,-151.0,0.00021988,2]
[401401351,1768185041077,-151.0,0.00021988,2]
[401401353,1768185041086,-151.0,0.00021988,2]
[401401355,1768185041095,-583.088819,0.00021988,2]
[401401357,1768185041105,-151.0,0.00021988,2]
[401401359,1768185041114,-583.088819,0.00021988,2]
[401401361,1768185041123,-583.088819,0.00021988,2]
[401401363,1768185041133,-583.088819,0.00021988,2]
[401401365,1768185041141,-26802.95279176,0.00021988,2]
[401401665,1768185044441,-2507.050628,0.00021918,2]
[401401667,1768185044450,-151.0,0.00021918,2]
[401401669,1768185044458,-149.56454576,0.00021918,2]
[401401846,1768185046127,-2357.48608224,0.00021918,2]
[401401848,1768185046136,-151.0,0.00021918,2]
[401401850,1768185046146,-2507.050628,0.00021918,2]
[401401852,1768185046155,-151.0,0.00021918,2]
[401401854,1768185046165,-2154.0267768,0.00021918,2]
[401401856,1768185046176,-353.0238512,0.00021918,2]
[401401858,1768185046186,-151.0,0.00021918,2]
[401401860,1768185046196,-335.58,0.00021978,10]
[401401862,1768185046205,-1738.7661488,0.00021988,2]
[401402517,1768185290966,155.0,6e-05,2]
[401402544,1768185469296,151.0,0.00030137,120]
[401402552,1768185480544,151.0,0.00030137,120]
[401402556,1768185489479,151.0,0.00030137,120]
[401402557,1768185497800,151.0,0.00030137,120]
[401402558,1768185506403,151.0,0.00030137,120]
[401402559,1768185514696,151.0,0.00030137,120]
[401402561,1768185522770,151.0,0.00030137,120]
[401402563,1768185530702,151.0,0.00030137,120]
[401402564,1768185538348,151.0,0.00030137,120]
[401402565,1768185545503,151.0,0.00030137,120]
[401402566,1768185552467,1051.0,0.0001,10]
[401402567,1768185553283,151.0,0.00030137,120]
[401402568,1768185559965,151.0,0.00030137,120]
[401402569,1768185567095,151.0,0.00030137,120]
[401402572,1768185574676,151.0,0.00030137,120]
[401402573,1768185582899,151.0,0.00030137,120]
[401402574,1768185589437,151.0,0.00030137,120]
[401402575,1768185596722,151.0,0.00030137,120]
[401402577,1768185605027,151.0,0.00030137,120]
[401402579,1768185608374,6020.46,0.00030136,120]
[401402581,1768185612335,151.0,0.00030137,120]
[401402586,1768185624693,151.0,0.00030137,120]
[401402587,1768185633186,151.0,0.00030137,120]
[401402588,1768185644240,151.0,0.00030137,120]
[401402604,1768185689061,151.0,0.00030137,120]
[401402605,1768185696867,151.0,0.00030137,120]
[401402606,1768185708599,151.0,0.00030137,120]
[401402607,1768185721297,151.0,0.00030137,120]
[401402608,1768185730247,151.0,0.00030137,120]
[401402610,1768185737488,151.0,0.00030137,120]
[401402613,1768185744876,151.0,0.00030137,120]
[401402614,1768185754204,151.0,0.00030137,120]
[401402615,1768185770822,151.0,0.00030137,120]
[401402616,1768185781922,151.0,0.00030137,120]
[401402617,1768185789985,151.0,0.00030137,120]
[401402618,1768185798751,151.0,0.00030137,120]
[401402619,1768185807933,151.0,0.00030137,120]
[401402620,1768185816374,151.0,0.00030137,120]
[401402622,1768185826530,151.0,0.00030137,120]
[401402623,1768185835479,151.0,0.00030137,120]
[401402624,1768185843659,151.0,0.00030137,120]
[401402626,1768185851704,151.0,0.00030137,120]
[401402636,1768185860144,151.0,0.00030137,120]
[401402637,1768185867556,151.0,0.00030137,120]
[401402638,1768185874793,151.0,0.00030137,120]
[401402639,1768185882372,151.0,0.00030137,120]
[401402640,1768185890701,151.0,0.00030137,120]
[401402665,1768185898850,151.0,0.00030137,120]
[401402666,1768185906006,151.0,0.00030137,120]
[401402668,1768185913487,151.0,0.00030137,120]
[401402672,1768185921118,151.0,0.00030137,120]
[401402673,1768185928718,151.0,0.00030137,120]
[401402676,1768185935971,151.0,0.00030137,120]
[401402677,1768185942939,151.0,0.00030137,120]
[401402678,1768185950336,151.0,0.00030137,120]
[401402679,1768185958396,151.0,0.00030137,120]
[401402681,1768185967576,151.0,0.00030137,120]
[401402682,1768185975043,151.0,0.00030137,120]
[401402684,1768185982525,151.0,0.00030137,120]
[401402686,1768185991932,151.0,0.00030137,120]
[401402690,1768186000800,151.0,0.00030137,120]
[401402691,1768186007778,151.0,0.00030137,120]
[401402692,1768186015024,151.0,0.00030137,120]
[401402694,1768186023191,151.0,0.00030137,120]
[401402703,1768186055312,151.0,0.00030137,120]
[401402704,1768186063763,151.0,0.00030137,120]
[401402705,1768186072788,151.0,0.00030137,120]
[401402706,1768186081102,151.0,0.00030137,120]
[401402728,1768186204916,164.97,5e-05,2]
[401402729,1768186211859,2730.78,0.00030136,120]
[401402730,1768186212121,2730.78,0.00030136,120]
[401402737,1768186212398,2730.78,0.00030136,120]
[401402739,1768186212641,2730.78,0.00030136,120]
[401402741,1768186212924,2730.78,0.00030136,120]
[401402742,1768186213188,2730.78,0.00030136,120]
[401402743,1768186213433,2730.78,0.00030136,120]
[401402745,1768186213695,2730.78,0.00030136,120]
[401402746,1768186213934,2730.78,0.00030136,120]
[401402747,1768186214209,2730.78,0.00030136,120]
[401402750,1768186214452,2730.78,0.00030136,120]
[401402752,1768186214713,2730.78,0.00030136,120]
[401402754,1768186214972,2730.78,0.00030136,120]
[401402759,1768186215398,2730.78,0.00030136,120]
[401402762,1768186215632,2730.78,0.00030136,120]
[401402763,1768186215870,2730.78,0.00030136,120]
[401402764,1768186216162,2730.78,0.00030136,120]
[401402769,1768186216380,2730.78,0.00030136,120]
[401402770,1768186216625,2730.78,0.00030136,120]
[401402772,1768186216858,2730.78,0.00030136,120]
[401402773,1768186217136,2730.78,0.00030136,120]
[401402774,1768186217372,2730.78,0.00030136,120]
[401402775,1768186217632,2730.78,0.00030136,120]
[401402776,1768186217866,2730.95950322,0.00030136,120]
[401402790,1768186232232,-161.3,0.0001,2]
[401402791,1768186232242,-560.0,0.0001,2]
[401402792,1768186232252,-161.3,0.000102,2]
[401402793,1768186232262,-98.75454956,0.000104,2]
[401402794,1768186232274,-62.54545044,0.000104,2]
[401402795,1768186232284,-161.3,0.000106,2]
[401402796,1768186232295,-153.03250297,0.00013673,2]
[401402797,1768186232316,-68.66733363,0.00013673,2]
[401402827,1768186238337,-84.64479136,0.00013673,2]
[401402829,1768186238346,-301.79313273,0.00013699,2]
[401402831,1768186238356,-251.0,0.00015,2]
[401402833,1768186238365,-486.31109,0.00015068,2]
[401402835,1768186238375,-180.90830748,0.00015673,2]
[401402837,1768186238384,-208.50448998,0.00017673,2]
[401402839,1768186238393,-2377.01550568,0.00017799,2]
[401402841,1768186238402,-713.05233335,0.00017899,2]
[401402843,1768186238412,-500.0,0.00017899,2]
[401402845,1768186238423,-500.0,0.00017899,2]
[401402846,1768186238432,-595.28988317,0.00017999,2]
[401402848,1768186238441,-1650.10085803,0.00018082,7]
[401402853,1768186238462,-300.0,0.00018257,2]
[401402855,1768186238472,-300.0,0.00018257,2]
[401402857,1768186238481,-300.0,0.00018257,2]
[401402859,1768186238491,-300.0,0.00018257,2]
[401402862,1768186238502,-300.0,0.00018257,2]
[401402864,1768186238512,-300.0,0.00018257,2]
[401402866,1768186238522,-300.0,0.00018257,2]
[401402868,1768186238532,-300.0,0.00018257,2]
[401402870,1768186238542,-300.0,0.00018257,2]
[401402872,1768186238552,-300.0,0.00018257,2]
[401402874,1768186238562,-300.0,0.00018257,2]
[401402875,1768186238572,-300.0,0.00018257,2]
[401402876,1768186238582,-300.0,0.00018257,2]
[401402877,1768186238591,-300.0,0.00018257,2]
[401402878,1768186238601,-300.0,0.00018257,2]
[401402879,1768186238611,-486.31109,0.00018493,2]
[401402880,1768186238621,-173.12871059,0.00018621,2]
[401402881,1768186238634,-426.87128941,0.00018621,2]
[401402882,1768186238644,-304.04513063,0.000189,2]
[401402883,1768186238654,-160.0,0.00019064,3]
[401402884,1768186238664,-208.10940688,0.00019178,2]
[401402885,1768186238674,-236.10067248,0.00019673,2]
[401402886,1768186238684,-160.0,0.00019739,4]
[401402887,1768186238694,-13845.19191243,0.000199,2]
[401402888,1768186238705,-13845.19191243,0.000199,2]
[401402889,1768186238715,-5000.0,0.00019989,2]
[401402890,1768186238725,-533.17200695,0.00019989,2]
[401402891,1768186238734,-159.09975667,0.00019989,2]
[401402892,1768186238744,-500.0,0.00019989,2]
[401402893,1768186238754,-100000.0,0.0001999,2]
[401402894,1768186238763,-151.65828913,0.0002,2]
[401402895,1768186238773,-159.91,0.0002,2]
[401402896,1768186238783,-156.51,0.0002,2]
[401402897,1768186238792,-167.75,0.0002,2]
[401402898,1768186238802,-30000.0,0.00020083,2]
[401402899,1768186238811,-2487.15318209,0.00020083,2]
[401402900,1768186238820,-500.0,0.00020161,2]
[401402901,1768186238830,-375.74506744,0.00020161,2]
[401402902,1768186238839,-500.0,0.00020161,2]
[401402903,1768186238849,-500.0,0.00020161,2]
[401402904,1768186238858,-500.0,0.00020161,2]
[401402905,1768186238868,-500.0,0.00020161,2]
[401402906,1768186238877,-500.0,0.00020161,2]
[401402907,1768186238887,-500.0,0.00020161,2]
[401402908,1768186238896,-500.0,0.00020161,2]
[401402909,1768186238908,-500.0,0.00020161,2]
[401402910,1768186238919,-500.0,0.00020161,2]
[401402911,1768186238930,-500.0,0.00020161,2]
[401402912,1768186238940,-500.0,0.00020161,2]
[401402913,1768186238951,-500.0,0.00020161,2]
[401402914,1768186238962,-224.45499599,0.00020161,2]
[401402915,1768186238972,-500.0,0.00020161,2]
[401402916,1768186238982,-500.0,0.00020161,2]
[401402917,1768186238993,-500.0,0.00020161,2]
[401402918,1768186239003,-500.0,0.00020161,2]
[401402919,1768186239014,-500.0,0.00020161,2]
[401402920,1768186239025,-500.0,0.00020161,2]
[401402921,1768186239036,-500.0,0.00020161,2]
[401402922,1768186239045,-151.0,0.00020162,2]
[401402923,1768186239058,-151.0,0.00020162,2]
[401402924,1768186239069,-151.0,0.00020162,2]
[401402925,1768186239079,-151.0,0.00020162,2]
[401402926,1768186239089,-151.0,0.00020162,2]
[401402927,1768186239100,-231.01973692,0.00020162,2]